[Event "Silves Open 2025"]
[Site "Fissul"]
[Date "2025.03.03"]
[Round "1.9"]
[White "Albuquerque, Eduardo Ferreira"]
[Black "Serarols Mabras, Bernat"]
[Result "1-0"]
[Annotator "TA"]
[ECO "E01"]
[WhiteElo "1897"]
[BlackElo "2311"]
[PlyCount "49"]
[EventDate "2025.03.03"]
[EventType "swiss"]
[EventCountry "POR"]
[SourceTitle "playchess.com"]
[Source "ChessBase"]
[SourceQuality "1"]
[TimeControl "5400+30"]

{[%evp 18,49,0,6,3,3,6,6,19,0,27,0,0,0,27,22,40,46,37,40,44,37,40,31,35,29,41,41,118,88,107,96,703,702]} 1. d4 {[%emt 0:00:05] ChessBase II} Nf6 {[%emt 0:05:31]} 2. c4 {[%emt 0:00:15]} e6 {[%emt 0:00:24]} 3. g3 {[%emt 0:00:20]} d5 {[%emt 0:00:59]} 4. Nf3 {[%emt 0:00:14]} Bb4+ {[%emt 0:00:04]} 5. Bd2 {[%emt 0:00:24]} Bd6 {[%emt 0:00:17]} 6. Bg2 {[%emt 0:01:13]} Nbd7 {[%emt 0:00:29]} 7. Qc2 {[%emt 0:07:23]} O-O {[%emt 0:02:08]} 8. O-O {[%emt 0:00:40]} c6 {[%emt 0:00:04]} 9. Bf4 {[%emt 0:04:53]} Bxf4 {[%emt 0:00:40]} 10. gxf4 {[%emt 0:00:17]} b6 {[%emt 0:00:20] E01: Catalan: Early deviations.} 11. Ne5 {[%emt 0:03:55] has lost popularity (11.cxd5).} Nxe5 {[%emt 0:01:46]} 12. dxe5 $146 {[%emt 0:00:14]} ({Predecessor:} 12. fxe5 Ng4 13. Nd2 Ba6 14. cxd5 cxd5 15. Nf3 Nh6 16. Bh3 f5 17. Kh1 Kh8 18. Rg1 {½-½ Andreikin,D (2736)-Carlsen,M (2840) Tata Steel-A 79th 2017 (3)}) 12... Ng4 {[%emt 0:09:10] The position is equal.} 13. e3 {[%emt 0:10:42]} a5 {[%emt 0:09:04]} 14. Rd1 {[%emt 0:10:00]} Ba6 {[%emt 0:01:25]} 15. Nd2 {[%emt 0:01:12]} Rc8 {[%emt 0:05:06]} 16. Rac1 {[%emt 0:07:22]} Qh4 {[%emt 0:06:02]} 17. Nf3 {[%emt 0:00:25] Successful Defense White} Qh5 {[%emt 0:03:49]} 18. cxd5 {[%emt 0:13:53]} cxd5 {[%emt 0:04:00]} 19. Qd2 {[%emt 0:00:58]} Nh6 {[%emt 0:13:17]} 20. Rxc8 {[%emt 0:05:02]} Rxc8 {[%emt 0:09:21]} 21. Rc1 {[%emt 0:00:22][%cal Bd1c1,Bc1c7,Bc7c3][%mdl 32]} Rb8 {[%emt 0:01:19]} 22. Rc7 {[%emt 0:04:05]} Qf5 {[%emt 0:01:32]} (22... Qg6 $1 $14) 23. Qc1 {[%emt 0:06:46] White is more active. Black is weak on the dark squares} g6 {[%emt 0:00:07]} 24. Nd4 {[%emt 0:01:21]} Qd3 {[%emt 0:10:08][%mdl 8192] [#]} (24... Qh5 $16) 25. Rc3 {[%emt 0:01:47] Weighted Error Value: White=0.08 (flawless) /Black=0.54  Loses game:     	---       	Black=1      Mistake:       	---       	Black=1      Inaccurate:     	White=1     	Black=2      OK:         	White=7     	Black=2      Best:        	White=2     	---} 1-0

[Event "Silves Open 2025"]
[Site "Fissul"]
[Date "2025.03.03"]
[Round "1.11"]
[White "Ramos, Vitorino"]
[Black "Sanz Wawer, Daniel"]
[Result "0-1"]
[Annotator "TA"]
[ECO "E32"]
[WhiteElo "1792"]
[BlackElo "2283"]
[PlyCount "30"]
[EventDate "2025.03.03"]
[EventType "swiss"]
[EventCountry "POR"]
[SourceTitle "playchess.com"]
[Source "ChessBase"]
[SourceQuality "1"]
[TimeControl "5400+30"]

{[%evp 9,29,0,0,-33,0,-6,-8,0,0,-30,-10,-24,-33,-61,-72,-91,-71,-225,-56,-61,-45,-29999]} 1. c4 {[%emt 0:03:47]} e6 {[%emt 0:00:16]} 2. d4 {[%emt 0:00:53]} Nf6 {[%emt 0:00:10]} 3. Nc3 {[%emt 0:01:57]} Bb4 {[%emt 0:00:07]} 4. Qc2 {[%emt 0:00:15]} O-O {[%emt 0:01:26]} 5. e4 {[%emt 0:02:53][%cal Be2e4,Be4e5][%mdl 32]} d5 {[%emt 0:00:06]} 6. cxd5 {[%emt 0:08:00] E32: Nimzo-Indian: Classical (4 Qc2): 4...0-0.} exd5 {[%emt 0:01:03]} (6... c5 7. dxe6 cxd4 8. exf7+ Kh8) 7. e5 {[%emt 0:02:16]} Ne4 {[%emt 0:01:42] ...c5 poses a challenge} 8. Bd3 {[%emt 0:03:36] The position is equal.} c5 {[%emt 0:04:17] [#] White must now prevent ...Nc6.} 9. a3 {[%emt 0:11:04]} Bxc3+ {[%emt 0:18:18]} (9... Ba5 {seems wilder.} 10. Nge2 cxd4 11. Nxd4 Bb6) 10. bxc3 {[%emt 0:00:48]} cxd4 {[%emt 0:00:28]} 11. Bxe4 {[%emt 0:05:51]} dxe4 {[%emt 0:00:09]} 12. Qxe4 {[%emt 0:00:19]} Qa5 $146 {[%emt 0:10:43][%mdl 2048] Black has strong initiative.} (12... dxc3 13. Nf3 Nc6 14. O-O Qa5 15. Be3 Re8 16. Bd4 Nxd4 17. Qxd4 Be6 18. Rfc1 Rac8 {0-1 Duarte Cramer,L (1836)-Matveeva,O (2181) Titled Tuesday intern op 25th Feb Early blitz 2025 (3)}) 13. Qxd4 {[%emt 0:10:08]} (13. Ne2 $17 {was the only chance.}) 13... Rd8 $2 {[%emt 0:00:36]} ({Black should play} 13... Nc6 $19 14. Qe3 Nxe5 (14... Qxe5 15. Ne2 $17)) 14. Qe3 $15 {[%emt 0:03:47]} Qd5 {[%emt 0:06:49][%csl Gd8][%cal Rd5d1][%mdl 1024] Black has compensation. Black is more active.} 15. Ne2 $2 {[%emt 0:08:13][%mdl 8192] [#]} (15. Qd4 $15) 15... Qd1# {[%emt 0:00:10] Weighted Error Value: White=0.94/Black=0.33  Loses game:     	White=1     	---        Missed win:     	---       	Black=1      Mistake:       	White=1     	---        Inaccurate:     	White=2     	Black=1      OK:         	White=2     	Black=2      Best:        	White=1     	Black=1} 0-1

[Event "Silves Open 2025"]
[Site "Fissul"]
[Date "2025.03.03"]
[Round "1.12"]
[White "Degardin, Sylvain"]
[Black "Mostafa, Hazem Farouk Mahmoud"]
[Result "1-0"]
[Annotator "TA"]
[ECO "B07"]
[WhiteElo "2309"]
[BlackElo "1769"]
[PlyCount "71"]
[EventDate "2025.03.03"]
[EventType "swiss"]
[EventCountry "POR"]
[SourceTitle "playchess.com"]
[Source "ChessBase"]
[SourceQuality "1"]
[TimeControl "5400+30"]

{[%evp 9,71,20,51,28,60,33,32,47,65,66,79,55,133,127,131,117,125,129,132,142,162,158,129,137,147,139,194,185,164,177,283,271,274,274,268,278,372,385,370,385,381,368,363,381,383,382,443,443,441,439,456,435,672,673,664,649,1354,1328,4710,1287,29974,29976,29981,29982]} 1. e4 {[%emt 0:00:04]} d6 {[%emt 0:00:26]} 2. d4 {[%emt 0:00:30]} Nf6 {[%emt 0:00:30]} 3. Nc3 {[%emt 0:00:30]} g6 {[%emt 0:00:30]} 4. Be3 {[%emt 0:00:30]} Bg7 {[%emt 0:00:30]} 5. Qd2 {[%emt 0:00:30]} c6 {[%emt 0:00:30]} 6. a4 {[%emt 0:00:30][%cal Ba2a4,Ba4a5][%mdl 32] B07: Pirc Defence: Miscellaneous Systems.} Qc7 {[%emt 0:00:30]} 7. h3 {[%emt 0:00:30]} Nbd7 {[%emt 0:00:30]} 8. Nf3 {[%emt 0:01:24] White is slightly better.} a6 {[%emt 0:02:39]} 9. a5 $146 {[%emt 0:00:30]} (9. Bh6 O-O 10. Bxg7 Kxg7 11. Be2 Rd8 12. O-O Rb8 13. a5 Nf8 14. Nh2 c5 15. Bg4 {0-1 Apsega,V (1354)-Agafonov,Y (2077) Vilnius op-B 2023 (1)}) 9... e5 {[%emt 0:00:30]} 10. dxe5 {[%emt 0:00:30]} (10. Bc4 $5) 10... dxe5 {[%emt 0:00:30]} ({Better is} 10... Nxe5 $14 11. Nxe5 dxe5) 11. Bc4 $16 {[%emt 0:01:59]} O-O {[%emt 0:03:07]} 12. O-O {[%emt 0:00:30] White has more active pieces.} b5 {[%emt 0:00:30]} 13. axb6 {[%emt 0:00:39]} Nxb6 {[%emt 0:06:50]} 14. Bb3 {[%emt 0:00:30]} Rd8 {[%emt 0:00:30]} 15. Qe2 {[%emt 0:00:30] and Ng5 would now be decisive} c5 {[%emt 0:00:30][%cal Bc6c5,Bc5c4][%mdl 32]} 16. Ra5 {[%emt 0:00:30][%cal Ba1a5,Ba5d5,Bd5d1][%mdl 32]} c4 {[%emt 0:00:30] [#]} 17. Ba2 {[%emt 0:00:30]} Nfd7 {[%emt 0:00:30]} (17... Nh5 $16) 18. Nd2 $18 {[%emt 0:00:30]} Bf8 {[%emt 0:00:30]} 19. Nxc4 {[%emt 0:00:30]} Bb4 {[%emt 0:00:30]} (19... Nxc4 $142 20. Qxc4 Qxc4 21. Bxc4 Nf6) 20. Nd5 {[%emt 0:00:30]} Nxd5 {[%emt 0:00:30]} 21. Rxd5 {[%emt 0:00:30]} Bb7 {[%emt 0:00:30]} 22. Rdd1 {[%emt 0:00:30]} Bxe4 {[%emt 0:00:30]} 23. Bg5 {[%emt 0:00:30][%csl LRd8,LRe4] Prevents Be7.} Bc6 {[%emt 0:00:30]} 24. Bxd8 {[%emt 0:00:30]} Rxd8 {[%emt 0:00:30] [#]} 25. Nxe5 $1 {[%emt 0:00:30][%mdl 512]} Nxe5 {[%emt 0:00:30]} 26. Rxd8+ {[%emt 0:00:30]} (26. Qxa6 $2 {loses.} Ra8 27. Bxf7+ Kxf7 $19 (27... Nxf7 $2 28. Qc4 $19) (27... Qxf7 $2 28. Qxa8+ Bxa8 29. Rd8+ Bf8 30. Rxa8 $19)) 26... Qxd8 {[%emt 0:00:30]} 27. Qxe5 {[%emt 0:00:30]} Qd6 {[%emt 0:00:30]} 28. Qxd6 {[%emt 0:00:30]} Bxd6 {[%emt 0:00:30][%cal Bb4d6,Bd6e5,Be5b2][%mdl 4128] Endgame KRB-KB} 29. Bc4 {[%emt 0:00:30]} Be5 {[%emt 0:00:30]} 30. c3 {[%emt 0:00:30][%cal Bc2c3,Bc3b4,Bb4b5,Bb5b6,Bb6b7][%mdl 32]} Bb5 {[%emt 0:00:30]} (30... a5 $142 31. Ra1 a4) 31. Bxb5 {[%emt 0:00:30]} axb5 {[%emt 0:00:30]} 32. Rd1 {[%emt 0:00:30]} b4 {[%emt 0:00:30]} 33. cxb4 {[%emt 0:00:30]} Bxb2 {[%emt 0:00:30]} 34. b5 {[%emt 0:00:30] Threatening mate with b6.} Kf8 {[%emt 0:00:30]} 35. b6 {[%emt 0:00:30]} Ke8 {[%emt 0:00:30]} 36. b7 {[%emt 0:00:30] Weighted Error Value: White=0.04 (flawless) /Black=0.91  Mistake:       	---       	Black=4      Inaccurate:     	White=1     	Black=2      OK:         	White=15    	Black=7      Best:        	White=2     	---} 1-0

[Event "Silves Open 2025"]
[Site "Fissul"]
[Date "2025.03.03"]
[Round "1.13"]
[White "Rogge, Marloes"]
[Black "Goncalves, Samuel Jesus P"]
[Result "0-1"]
[Annotator "TA"]
[ECO "B13"]
[WhiteElo "1761"]
[BlackElo "2280"]
[PlyCount "120"]
[EventDate "2025.03.03"]
[EventType "swiss"]
[EventCountry "POR"]
[SourceTitle "playchess.com"]
[Source "ChessBase"]
[SourceQuality "1"]
[TimeControl "5400+30"]

{[%evp 9,120,2,5,-16,36,34,31,-25,-28,-23,0,-19,-8,-17,-10,-16,1,-26,-23,-113,-87,-81,-59,-72,2,10,2,-1,33,16,16,0,39,-91,-93,-91,-94,-127,-126,-214,-222,-221,-201,-208,-206,-209,-197,-230,0,-108,-112,-113,-99,-104,-104,-173,-180,-194,-191,-208,-208,-225,-208,-219,-219,-254,-256,-241,-203,-249,-244,-387,-384,-364,-377,-397,-388,-473,-459,-541,-544,-531,-522,-494,-506,-812,-741,-708,-576,-754,-518,-491,-494,-939,-361,-1787,-1678,-1523,-268,-2019,-564,-29971,-29977,-29976,-29977,-29969,-29974,-29971,-29970,-29968,-5716,-29988,-29989]} 1. e4 {[%emt 1:31:00]} c6 {[%emt 1:31:00]} 2. d4 {[%emt 0:00:30]} d5 {[%emt 0:00:30]} 3. exd5 {[%emt 0:00:30]} cxd5 {[%emt 0:00:30]} 4. Nf3 {[%emt 0:00:30]} Nc6 {[%emt 0:00:30]} 5. Be2 {[%emt 0:00:30]} Bf5 {[%emt 0:00:30]} 6. c3 {[%emt 0:00:30] B13: Caro-Kann: Exchange Variation and Panov-Botvinnik Attack.} Qc7 {[%emt 0:00:30]} (6... e6 $11) 7. O-O $14 {[%emt 0:00:30]} e6 {[%emt 0:00:30]} 8. Nbd2 {[%emt 0:00:30]} (8. Nh4 $14) 8... Bd6 $11 {[%emt 0:00:30]} 9. Re1 {[%emt 0:00:30]} Nge7 {[%emt 0:00:30]} 10. Nf1 {[%emt 0:00:30]} O-O {[%emt 0:00:30]} 11. Bd3 $146 {[%emt 0:00:30]} (11. Ng3 Bg6 12. Nh4 Rab8 13. Nxg6 Nxg6 14. Bf3 b5 15. Bd2 Rfc8 16. Rb1 b4 17. Rc1 {0-1 Mathiot,J (1565)-Arcelin,G (1923) Cappelle Online Blitz op 1st 2021 (3)}) 11... Bg6 {[%emt 0:00:30]} 12. Ne3 {[%emt 0:00:30]} Rae8 {[%emt 0:00:30]} 13. Ng4 {[%emt 0:00:30]} f6 {[%emt 0:00:30]} 14. Nh4 {[%emt 0:00:30]} (14. Bxg6 $11 Nxg6 15. Bd2) 14... Bxd3 {[%emt 0:00:30]} 15. Qxd3 {[%emt 0:00:30][%cal Oh2h3]} f5 {[%emt 0:00:30]} 16. Ne5 {[%emt 0:00:30]} (16. Nh6+ $2 Kh8 17. Qh3 Qd7 $19 (17... gxh6 $2 18. Rxe6 Ng8 19. Rxe8 $19)) 16... Nxe5 {[%emt 0:00:30]} (16... Bxe5 $17 17. dxe5 f4 (17... Nxe5 $2 18. Qg3 $18)) 17. dxe5 {[%emt 0:00:30]} Bc5 {[%emt 0:00:30]} 18. Nf3 {[%emt 0:00:30]} (18. b4 $5 Bb6 $8 19. a4 $16) 18... Ng6 {[%emt 0:00:30]} 19. a4 {[%emt 0:00:30]} a6 {[%emt 0:00:30]} 20. a5 {[%emt 0:00:30]} f4 {[%emt 0:00:30]} 21. h4 {[%emt 0:00:30]} (21. b4 $14 Be7 22. b5) 21... Rf5 $1 $17 {[%emt 0:00:30]} 22. Qe2 {[%emt 0:00:30]} Qe7 {[%emt 0:00:30] Black is more active.} 23. b4 {[%emt 0:00:30]} Ba7 {[%emt 0:00:30]} 24. Ba3 {[%emt 0:00:30]} (24. c4 $17 {might work better.}) 24... Nxh4 $19 {[%emt 0:00:30]} 25. b5 {[%emt 0:00:30]} Nxf3+ {[%emt 0:00:30]} 26. Qxf3 {[%emt 0:00:30] [#]} Qh4 {[%emt 0:00:30]} 27. b6 {[%emt 0:00:30] [#]} Bb8 {[%emt 0:00:30]} 28. Bd6 {[%emt 0:00:30]} Qd8 $2 {[%emt 0:00:30]} ({Black should try} 28... Rd8 $19 29. Bxb8 Rxb8) 29. c4 {[%emt 0:00:30]} Bxd6 $17 {[%emt 0:00:30] Black continues to play with concentration.} (29... dxc4 30. Qxb7 Bxd6 31. exd6 Qxd6 32. Rad1 $16 (32. Qxa6 $2 Qc6 $19)) 30. exd6 {[%emt 0:00:30]} Qxd6 {[%emt 0:00:30]} (30... dxc4 31. Qxb7 Qxd6 32. Rad1 $18 (32. Qxa6 $2 {loses.} Qc6 $19)) 31. cxd5 {[%emt 0:00:30]} Qxd5 {[%emt 0:00:30]} 32. Qxd5 {[%emt 0:00:30]} (32. Re4 $17) 32... Rxd5 {[%emt 0:00:30][%mdl 4096] Endgame KRR-KRR. Black is two pawns up.} 33. Rec1 {[%emt 0:00:30]} Re7 {[%emt 0:00:30]} 34. f3 {[%emt 0:00:30]} Kf7 {[%emt 0:00:30]} 35. Kf1 {[%emt 0:00:30]} e5 {[%emt 0:00:30]} 36. Ke2 {[%emt 0:00:30]} Ke6 {[%emt 0:00:30]} 37. Rh1 {[%emt 0:00:30]} h6 {[%emt 0:00:30]} 38. Rhc1 {[%emt 0:00:30]} Kf5 {[%emt 0:00:30]} 39. Ra4 {[%emt 0:00:30]} Red7 {[%emt 0:00:30]} 40. Raa1 {[%emt 0:00:30]} (40. Ra2 $142) 40... e4 $19 {[%emt 0:00:30]} 41. fxe4+ {[%emt 0:00:30]} Kxe4 {[%emt 0:00:30]} 42. Rc4+ {[%emt 0:00:30]} Kf5 {[%emt 0:00:30]} 43. Kf3 {[%emt 0:00:30]} g5 {[%emt 0:00:30]} 44. g4+ {[%emt 0:00:30]} fxg3 {[%emt 0:00:30]} 45. Kxg3 {[%emt 0:00:30]} h5 {[%emt 0:00:30]} 46. Rf1+ {[%emt 0:00:30]} Kg6 {[%emt 0:00:30] aiming for ...h4+.} 47. Ra1 {[%emt 0:00:30]} (47. Rf8 $142 Rxa5 48. Rg8+ Kf5 (48... Rg7 49. Rxg7+ Kxg7 50. Rc7+ Kf6 51. Rxb7 $17) 49. Rf8+ Ke6 50. Rc3) 47... h4+ {[%emt 0:00:30]} 48. Kg2 {[%emt 0:00:30]} Kh5 {[%emt 0:00:30]} 49. Kf3 {[%emt 0:00:30]} Rb5 {[%emt 0:00:30]} 50. Rc8 {[%emt 0:00:30]} Rf7+ {[%emt 0:00:30]} 51. Kg2 {[%emt 0:00:30]} (51. Ke2 $142) 51... Kg4 $2 {[%emt 0:00:30]} (51... Rb2+ 52. Kg1 Rff2) 52. Ra4+ $2 {[%emt 0:00:30]} (52. Rg1) 52... Rf4 {[%emt 0:00:30]} 53. Ra1 {[%emt 0:00:30]} h3+ $2 {[%emt 0:00:30]} (53... Rb2+ 54. Kg1 Rfb4) 54. Kg1 $2 {[%emt 0:00:30]} (54. Kh1) 54... Kg3 {[%emt 0:00:30]} (54... Rbf5 $142 {( -> ...Kg3)} 55. Rg8 Kh4) 55. Rc7 {[%emt 0:00:30]} Rbf5 {[%emt 0:00:30]} 56. Rc3+ {[%emt 0:00:30]} Rf3 {[%emt 0:00:30]} 57. Rxf3+ {[%emt 0:00:30]} Rxf3 {[%emt 0:00:30]} 58. Rc1 {[%emt 0:00:30]} Ra3 {[%emt 0:00:30]} 59. Kh1 {[%emt 0:00:30]} g4 {[%emt 0:00:30]} (59... Rxa5 $142 60. Kg1 Rb5 61. Kh1 g4 (61... Rxb6 $2 62. Rg1+ Kh4 63. Rc1 $19) 62. Kg1 Rxb6 63. Rd1 Rb3 64. Kh1 a5 65. Kg1 a4 66. Kh1 a3 67. Rg1+ Kh4 68. Re1 a2 69. Kg1 Rb1 70. Kf2 a1=Q (70... a1=R {is a self mate.} 71. Re2 h2 72. Re8 Rf1+ 73. Ke3 Rae1+ 74. Kd3 Rxe8 75. Kc4 h1=Q 76. Kc5 Qc6+ 77. Kb4 Rb1+ 78. Ka5 Re5#) (70... g3+ 71. Ke3 Rxe1+ 72. Kd3 a1=Q 73. Kc4 h2 74. Kc5 h1=Q 75. Kb4 Qc6 76. Kb3 Qcc3#) 71. Rxb1 Qxb1 (71... g3+ 72. Ke3 Qxb1 73. Kf4 h2 74. Ke5 h1=Q 75. Kd6 Qc6+ 76. Ke7 Qh7+ 77. Kf8 Qc8#) 72. Ke3 h2 73. Ke2 h1=Q (73... h1=B 74. Ke3 Qe4+ 75. Kd2 Qc4 76. Kd1 Bf3+ 77. Kd2 Kg3 78. Ke3 Qc3#) 74. Ke3 Qhe4+ 75. Kf2 g3#) 60. Rg1+ {[%emt 0:00:30]} Kh4 {[%emt 0:00:30] Weighted Error Value: White=0.64/Black=0.32  Missed win:     	---       	Black=1      Mistake:       	White=10    	Black=3      Inaccurate:     	White=3     	Black=2      OK:         	White=8     	Black=16     Best:        	White=2     	Black=5      Strong:       	---       	Black=1} 0-1

[Event "Silves Open 2025"]
[Site "Fissul"]
[Date "2025.03.03"]
[Round "1.14"]
[White "Malassagne, Raphael"]
[Black "Munno Moyano, Mario"]
[Result "1-0"]
[Annotator "TA"]
[ECO "A45"]
[WhiteElo "2267"]
[BlackElo "1755"]
[PlyCount "87"]
[EventDate "2025.03.03"]
[EventType "swiss"]
[EventCountry "POR"]
[SourceTitle "playchess.com"]
[Source "ChessBase"]
[SourceQuality "1"]
[TimeControl "5400+30"]

{[%evp 9,87,7,11,7,15,9,16,1,13,20,21,0,0,0,0,0,0,0,308,293,291,260,255,232,250,197,204,207,202,202,219,203,203,189,198,213,209,203,194,177,178,176,213,212,234,222,206,172,220,218,232,227,263,252,258,258,284,279,300,182,192,191,191,191,254,254,254,250,243,238,334,345,368,346,580,581,517,447,581,563]} 1. d4 {[%emt 0:00:10]} Nf6 {[%emt 0:00:08]} 2. Bf4 {[%emt 0:00:07]} c5 {[%emt 0:00:19]} 3. d5 {[%emt 0:01:27]} d6 {[%emt 0:00:05]} 4. Nc3 {[%emt 0:00:28]} e5 {[%emt 0:00:09]} 5. dxe6 {[%emt 0:00:47]} Bxe6 {[%emt 0:00:06]} 6. e4 {[%emt 0:00:41][%cal Be2e4,Be4e5][%mdl 32] A45: Trompowsky Attack.} Nc6 {[%emt 0:00:10]} 7. Nf3 {[%emt 0:00:19]} h6 {[%emt 0:03:12]} 8. Bb5 {[%emt 0:07:23] The position is equal.} Be7 $146 {[%emt 0:06:57]} (8... a6 9. Bxc6+ bxc6 10. Qd2 d5 11. exd5 cxd5 12. O-O Be7 13. Rfe1 O-O 14. Ne5 Qc8 {0-1 Srienz,C-Theuretzbacher,K (2210) AUT-ch sf Hartberg 1992}) 9. O-O {[%emt 0:07:06]} O-O {[%emt 0:06:13]} 10. Bxc6 {[%emt 0:04:03]} bxc6 {[%emt 0:00:31]} 11. e5 {[%emt 0:00:07][%cal Re5d6]} Nd5 {[%emt 0:04:01]} 12. exd6 {[%emt 0:02:24]} Nxf4 {[%emt 0:01:22]} 13. dxe7 {[%emt 0:00:05]} Nh3+ $2 {[%emt 0:00:07][%mdl 8192] Black is now going downhill.} 14. gxh3 $18 {[%emt 0:01:39]} Qxe7 {[%emt 0:00:07]} 15. Kh1 {[%emt 0:09:42]} Qf6 {[%emt 0:01:49]} 16. Ng1 {[%emt 0:05:55]} Bc4 {[%emt 0:08:17] [#]} 17. Qf3 $1 {[%emt 0:04:22]} Qxf3+ {[%emt 0:01:36]} 18. Nxf3 {[%emt 0:00:03]} Bxf1 {[%emt 0:00:16]} 19. Rxf1 {[%emt 0:00:04]} Rab8 {[%emt 0:00:21]} 20. b3 {[%emt 0:02:10]} Rfe8 {[%emt 0:01:03]} 21. Kg2 {[%emt 0:04:03]} c4 {[%emt 0:06:41]} 22. Nd2 {[%emt 0:00:35]} (22. bxc4 $6 Rb4 $16) 22... cxb3 {[%emt 0:00:18]} 23. axb3 {[%emt 0:00:04]} ({Don't take} 23. cxb3 $6 Rbd8 24. Nc4 Re6) 23... Re5 {[%emt 0:02:55]} 24. Ra1 {[%emt 0:06:12]} Rg5+ {[%emt 0:02:52]} 25. Kf1 {[%emt 0:04:14]} Rb7 {[%emt 0:02:15]} 26. Ra6 {[%emt 0:07:26]} Rc7 {[%emt 0:05:36]} 27. Ra4 {[%emt 0:04:05]} Rd7 {[%emt 0:03:32]} 28. h4 {[%emt 0:03:56]} Re5 {[%emt 0:07:29] [#]} (28... Rh5 29. Nc4 Rxh4) 29. Nc4 $1 {[%emt 0:01:01]} Rh5 {[%emt 0:02:18]} 30. Ne3 {[%emt 0:01:00]} Rc5 {[%emt 0:05:35]} 31. Ne4 {[%emt 0:00:40]} Re5 {[%emt 0:09:08]} 32. Rc4 {[%emt 0:02:52]} f5 {[%emt 0:05:36]} 33. Ng3 {[%emt 0:03:35]} Rf7 {[%emt 0:05:48]} 34. Ngxf5 {[%emt 0:06:13]} Rfxf5 {[%emt 0:01:44]} 35. Nxf5 {[%emt 0:00:02]} Rxf5 {[%emt 0:00:10]} 36. Rxc6 {[%emt 0:00:03][%mdl 4096] Endgame KR-KR. White is two pawns up.} Rb5 {[%emt 0:01:34]} (36... a5 {was called for.} 37. Rc4 Re5) 37. Ra6 {[%emt 0:00:17]} Rb7 {[%emt 0:00:17]} 38. h5 {[%emt 0:00:18]} Kf7 {[%emt 0:00:13]} 39. Ke2 {[%emt 0:00:04]} Rd7 {[%emt 0:01:23]} (39... Rb5 $142 40. Rxa7+ Kg8 41. Ra8+ Kh7) 40. b4 {[%emt 0:00:11][%cal Bb3b4,Bb4b5][%mdl 32]} Ke8 {[%emt 0:01:07]} 41. Ke3 {[%emt 0:00:29] Strongly threatening c4.} Kd8 $2 {[%emt 0:00:18]} (41... Rc7 42. Kd3 Rd7+ 43. Kc3 Rf7) 42. c4 {[%emt 0:00:09] White is clearly winning.} Kc8 {[%emt 0:01:06]} 43. b5 {[%emt 0:00:10]} Kb8 {[%emt 0:00:47]} 44. Rg6 {[%emt 0:00:05] Weighted Error Value: White=0.13 (very precise) /Black=0.33  Loses game:     	---       	Black=1      Mistake:       	---       	Black=4      Inaccurate:     	White=1     	---        OK:         	White=21    	Black=12     Best:        	White=1     	---} 1-0